bitfinex-derivatives/quotes_BTCF0:USTF0_20250422
["timestamp","ask_amount","ask_price","bid_price","bid_amount"]
[1745342197989,0.72714,90795.0,90794.0,0.3452821]
[1745342198186,0.72714,90795.0,90794.0,0.3588456]
[1745342199501,0.8372209,90795.0,90794.0,0.2487635]
[1745342199792,0.6149,90795.0,90794.0,0.3588456]
[1745342199992,0.69858236,90795.0,90794.0,0.3588456]
[1745342200189,0.69858236,90795.0,90794.0,0.345077]
[1745342200587,0.07073651,90797.0,90796.0,0.1100797]
[1745342200791,0.10804,90806.0,90796.0,0.1100797]
[1745342200792,0.01708,90806.0,90805.0,0.1100688]
[1745342200993,0.07373535,90811.0,90810.0,0.1100627]
[1745342201190,0.19023535,90811.0,90810.0,0.1200627]
[1745342201599,0.07373535,90811.0,90810.0,0.1200627]
[1745342201792,0.07373535,90811.0,90810.0,0.09979036]
[1745342201991,0.07673535,90811.0,90810.0,0.09979036]
[1745342202597,0.08173535,90811.0,90810.0,0.09979036]
[1745342203092,0.07973535,90811.0,90810.0,0.09979036]
[1745342203287,0.57973535,90811.0,90810.0,0.09979036]
[1745342203888,0.57973535,90811.0,90810.0,0.20939036]
[1745342204492,0.57973535,90811.0,90810.0,0.1196]
[1745342204687,0.68443535,90811.0,90810.0,0.1216]
[1745342204894,0.79483535,90811.0,90810.0,0.1246]
[1745342205097,0.90489685,90811.0,90810.0,0.015]
[1745342205295,0.90489685,90811.0,90810.0,0.013]
[1745342205488,0.90489685,90811.0,90810.0,0.011]
[1745342205798,0.90489685,90811.0,90810.0,0.013]
[1745342206296,0.1100665,90807.0,90803.0,0.09476609]
[1745342206598,0.1100688,90805.0,90804.0,0.1096]
[1745342206794,0.1100688,90805.0,90804.0,0.1296]
[1745342206998,0.3330688,90805.0,90804.0,0.1296]
[1745342207195,0.8330688,90805.0,90804.0,0.09761467]
[1745342207897,0.8330688,90805.0,90804.0,0.02]
[1745342208800,0.8370688,90805.0,90804.0,0.021]
[1745342209098,0.729,90805.0,90804.0,0.021]
[1745342209297,0.728,90805.0,90804.0,0.021]
[1745342209690,0.8380688,90805.0,90804.0,0.021]
[1745342210101,0.728,90805.0,90804.0,0.021]
[1745342210495,0.728,90805.0,90799.0,0.10775645]
[1745342210702,0.3608,90803.0,90800.0,0.0550372]
[1745342211004,0.1113,90802.0,90801.0,0.2274736]
[1745342211203,0.1113,90802.0,90801.0,0.2374736]
[1745342211394,0.2282,90802.0,90801.0,0.2374736]
[1745342211899,0.7282,90802.0,90801.0,0.2374736]
[1745342212301,0.7322,90802.0,90801.0,0.2384736]
[1745342212603,0.7322,90802.0,90801.0,0.2374736]
[1745342212809,0.7322,90802.0,90801.0,0.2384736]
[1745342213803,0.7322,90802.0,90801.0,0.3582736]
[1745342214305,0.7312,90802.0,90801.0,0.33083885]
[1745342215197,0.7292,90802.0,90801.0,0.33083885]
[1745342215501,0.7312,90802.0,90801.0,0.22076525]
[1745342215704,0.7302,90802.0,90801.0,0.22076525]
[1745342215904,0.8814716,90802.0,90801.0,0.22076525]
[1745342216305,0.991544,90802.0,90801.0,0.01]
[1745342216605,0.9997716,90802.0,90801.0,0.01]
[1745342216801,0.7645716,90802.0,90801.0,0.1200736]
[1745342217107,0.6512716,90802.0,90801.0,0.1200736]
[1745342217308,0.6532716,90802.0,90801.0,0.1200736]
[1745342217506,0.56330687,90802.0,90801.0,0.1200736]
[1745342217810,0.56330687,90802.0,90801.0,0.3423736]
[1745342217997,0.56130687,90802.0,90801.0,0.3423736]
[1745342218195,0.56030687,90802.0,90801.0,0.3423736]
[1745342218402,0.56230687,90802.0,90801.0,0.3423736]
[1745342218601,0.1522716,90802.0,90801.0,0.3423736]
[1745342218804,0.1512716,90802.0,90801.0,0.3433736]
[1745342219003,0.07753625,90802.0,90801.0,0.3433736]
[1745342219305,0.00165251,90815.0,90812.0,0.1100603]
[1745342219612,0.00165251,90815.0,90814.0,0.09078566]
[1745342219806,0.00165251,90815.0,90814.0,0.11078566]
[1745342220204,0.72265251,90815.0,90814.0,0.32698566]
[1745342220711,0.72265251,90815.0,90814.0,0.31321974]
[1745342221009,0.72565251,90815.0,90814.0,0.31321974]
[1745342222003,0.61175251,90815.0,90814.0,0.31321974]
[1745342222306,0.51306198,90815.0,90814.0,0.28578961]
[1745342222822,0.62316198,90815.0,90814.0,0.28578961]
[1745342223204,0.73246198,90815.0,90814.0,0.28578961]
[1745342223597,0.83986617,90815.0,90814.0,0.02]
[1745342223802,0.83470947,90815.0,90814.0,0.1120579]
[1745342224003,0.83470947,90815.0,90814.0,0.002]
[1745342224298,0.83270947,90815.0,90814.0,0.003]
[1745342224503,0.83470947,90815.0,90814.0,0.003]
[1745342224905,0.94376617,90815.0,90814.0,0.003]
[1745342225213,0.94276617,90815.0,90814.0,0.001]
[1745342225399,0.94376617,90815.0,90814.0,0.00159134]
[1745342226007,0.94276617,90815.0,90814.0,0.00059134]
[1745342226203,0.94376617,90815.0,90814.0,0.00259134]
[1745342226611,0.94376617,90815.0,90814.0,0.003]
[1745342227112,0.1100591,90813.0,90812.0,0.08552454]
[1745342227408,0.0550302,90812.0,90804.0,0.055035]
[1745342227606,0.3608,90805.0,90804.0,0.065035]
[1745342227798,0.3608,90805.0,90804.0,0.04575963]
[1745342228704,0.7188,90808.0,90807.0,0.1100664]
[1745342228900,0.6148,90808.0,90807.0,0.1100664]
[1745342229205,0.6148,90808.0,90807.0,0.1200664]
[1745342230109,0.7248651,90808.0,90799.0,0.0550376]
[1745342230409,0.104,90807.0,90806.0,0.1100671]
[1745342230603,0.104,90807.0,90806.0,0.1200671]
[1745342230806,0.2107,90807.0,90806.0,0.1200671]
[1745342231305,0.8207664,90807.0,90806.0,0.1200671]
[1745342231511,0.8237664,90807.0,90806.0,0.10629941]
[1745342232007,0.7137,90807.0,90806.0,0.10629941]
[1745342232399,0.6097,90807.0,90806.0,0.10629941]
[1745342232601,0.503,90807.0,90806.0,0.10629941]
[1745342232907,0.504,90807.0,90806.0,0.79122341]
[1745342233207,0.503,90807.0,90806.0,0.79122341]
[1745342233607,0.504,90807.0,90806.0,0.79122341]
[1745342234111,0.502,90807.0,90806.0,0.79122341]
[1745342234407,0.57721167,90807.0,90806.0,0.79122341]
[1745342234705,0.57721167,90807.0,90806.0,0.43042341]
[1745342236602,0.57621167,90807.0,90806.0,0.43042341]
[1745342236801,0.57721167,90807.0,90806.0,0.43042341]
[1745342237401,0.49876297,90807.0,90806.0,0.43042341]
[1745342237601,0.49976297,90807.0,90806.0,0.43042341]
[1745342238108,0.07721167,90807.0,90806.0,0.43042341]
[1745342238410,0.07721167,90807.0,90806.0,0.40399473]
[1745342238915,0.07621167,90807.0,90806.0,0.40399473]
[1745342239109,0.07721167,90807.0,90806.0,0.40399473]
[1745342240315,0.07721167,90807.0,90806.0,0.75432938]
[1745342240709,0.1109,90813.0,90812.0,0.1100603]
[1745342240907,0.1044,90825.0,90814.0,0.1100579]
[1745342241103,0.1109,90824.0,90815.0,0.1100567]
[1745342241309,0.1109,90824.0,90823.0,0.110047]
[1745342241508,0.1109,90824.0,90823.0,0.11628289]
[1745342242106,0.1109,90824.0,90823.0,0.33348289]
[1745342242306,0.61904542,90824.0,90823.0,0.33348289]
[1745342243209,0.69278077,90824.0,90823.0,0.33348289]
[1745342243411,0.69378077,90824.0,90823.0,0.33348289]
[1745342243613,0.69478077,90824.0,90823.0,0.33448289]
[1745342244712,0.66218727,90824.0,90823.0,0.33448289]
[1745342244912,0.00016518,90833.0,90832.0,0.1100361]
[1745342245211,0.00016518,90833.0,90832.0,0.1600361]
[1745342246309,0.50316518,90833.0,90832.0,0.13361253]
[1745342247016,0.51140518,90833.0,90832.0,0.13361253]
[1745342247214,0.51140518,90833.0,90824.0,0.35033465]
[1745342247215,1.25929718,90833.0,90800.0,0.3608]
[1745342247512,0.7216,90807.0,90787.0,0.04906179]
[1745342247708,0.3608,90789.0,90788.0,0.1100894]
[1745342247902,0.3608,90789.0,90787.0,0.04906179]
[1745342248107,0.1103,90788.0,90787.0,0.04906179]
[1745342248413,0.2203894,90788.0,90787.0,0.04906179]
[1745342248803,0.7203894,90788.0,90787.0,0.04906179]
[1745342249410,0.6103,90788.0,90787.0,0.04906179]
[1745342249712,0.6103,90788.0,90787.0,0.05106179]
[1745342249713,0.6113,90788.0,90787.0,0.05106179]
[1745342250313,0.6123,90788.0,90787.0,0.05206179]
[1745342250502,0.722,90788.0,90787.0,0.05206179]
[1745342250902,0.722,90788.0,90787.0,0.16215239]
[1745342251613,0.722,90788.0,90787.0,0.05206179]
[1745342252209,0.722,90788.0,90787.0,0.14838284]
[1745342252410,0.722,90788.0,90787.0,0.1130906]
[1745342252614,0.722,90788.0,90787.0,0.1384214]
[1745342254416,0.722,90788.0,90787.0,0.11198396]
[1745342255314,0.722,90788.0,90779.0,0.0550501]
[1745342255315,0.055048,90783.0,90753.0,0.1101309]
[1745342255517,0.3608,90754.0,90753.0,0.15]
[1745342255811,0.36909826,90754.0,90753.0,0.30502992]
[1745342256011,0.36909826,90754.0,90753.0,0.19489812]
[1745342256315,0.36909826,90754.0,90753.0,0.30252992]
[1745342256514,0.33178711,90754.0,90753.0,0.72004047]
[1745342256712,0.83378711,90754.0,90753.0,0.72004047]
[1745342256914,0.83478711,90754.0,90753.0,0.72004047]
[1745342257824,0.83478711,90754.0,90753.0,0.19239812]
[1745342258214,0.83478711,90754.0,90753.0,0.04489812]
[1745342258215,0.33478711,90754.0,90753.0,0.04489812]
[1745342258419,0.33478711,90754.0,90745.0,0.0550706]
[1745342258717,0.3608,90746.0,90745.0,0.2601416]
[1745342259522,0.3608,90746.0,90745.0,0.19508148]
[1745342259718,0.3608,90746.0,90745.0,0.30522308]
[1745342259921,0.3628,90746.0,90745.0,0.30522308]
[1745342260712,0.8628,90746.0,90745.0,0.30522308]
[1745342261415,0.8648,90746.0,90745.0,0.30522308]
[1745342262618,0.8648,90746.0,90745.0,0.29144794]
[1745342266018,0.8628,90746.0,90745.0,0.29144794]
[1745342266321,0.8648,90746.0,90745.0,0.29144794]
[1745342266520,0.8638,90746.0,90745.0,0.29144794]
[1745342268223,0.8628,90746.0,90745.0,0.70895849]
[1745342269725,0.1128,90753.0,90752.0,0.1101331]
[1745342269922,0.00829826,90754.0,90753.0,0.1101318]
[1745342270221,0.3608,90765.0,90762.0,0.1101209]
[1745342270620,0.0084575,90763.0,90762.0,0.1101209]
[1745342270821,0.00016528,90763.0,90762.0,0.1201209]
[1745342271017,0.00016528,90763.0,90762.0,0.3313209]
[1745342271214,0.50016528,90763.0,90762.0,0.3313209]
[1745342271515,0.50860296,90763.0,90762.0,0.1201209]
[1745342271921,0.50960296,90763.0,90762.0,0.1211209]
[1745342272117,0.50960296,90763.0,90762.0,0.2254209]
[1745342272627,0.51060296,90763.0,90762.0,0.2254209]
[1745342273014,0.50960296,90763.0,90762.0,0.2254209]
[1745342273219,0.51060296,90763.0,90762.0,0.2254209]
[1745342273618,0.51060296,90763.0,90762.0,0.2264209]
[1745342273924,0.51060296,90763.0,90762.0,0.21264851]
[1745342274123,0.51060296,90763.0,90762.0,0.22264851]
[1745342274518,0.51060296,90763.0,90762.0,0.19620549]
[1745342275023,0.61620296,90763.0,90762.0,0.19620549]
[1745342275334,0.51060296,90763.0,90762.0,0.19520549]
[1745342276316,0.50960296,90763.0,90762.0,0.61271604]
[1745342276516,0.51060296,90763.0,90762.0,0.61271604]
[1745342278015,0.51060296,90763.0,90762.0,0.68271604]
[1745342278828,0.50960296,90763.0,90762.0,0.16090549]
[1745342279016,0.51060296,90763.0,90762.0,0.16090549]
[1745342279217,0.62320296,90763.0,90762.0,0.16090549]
[1745342279623,0.62320296,90763.0,90762.0,0.36530549]
[1745342279824,0.51060296,90763.0,90762.0,0.36530549]
[1745342280327,0.51060296,90763.0,90762.0,0.37530549]
[1745342280515,0.27304448,90763.0,90762.0,0.37530549]
[1745342282620,0.38294448,90763.0,90762.0,0.37530549]
[1745342282817,0.38294448,90763.0,90762.0,0.16090549]
[1745342283020,0.38294448,90763.0,90762.0,0.081]
[1745342283323,0.1101306,90754.0,90730.0,0.21012172]
[1745342283525,0.3608,90754.0,90749.0,0.1101363]
[1745342283718,0.4709306,90754.0,90742.0,0.0550725]
[1745342283918,0.4709306,90754.0,90740.0,0.21177486]
[1745342283919,0.5811186,90754.0,90740.0,0.05672674]
[1745342284222,0.1101403,90746.0,90740.0,0.00165314]
[1745342284419,0.4709403,90746.0,90740.0,0.00165314]
[1745342284617,0.3608,90741.0,90740.0,0.00165314]
[1745342285124,0.3608,90741.0,90740.0,0.11180074]
[1745342285628,0.3608,90741.0,90740.0,0.16878965]
[1745342286023,0.3618,90741.0,90740.0,0.16878965]
[1745342286218,0.6244,90741.0,90740.0,0.16778965]
[1745342286419,0.6254,90741.0,90740.0,0.16878965]
[1745342287528,0.6254,90741.0,90740.0,0.28208965]
[1745342288132,0.6254,90741.0,90740.0,0.16878965]
[1745342289532,0.60549116,90741.0,90740.0,0.8623002]
[1745342289732,0.2646,90741.0,90740.0,0.8623002]
[1745342292323,0.2646,90741.0,90740.0,0.83585295]
[1745342293340,0.14995935,90749.0,90748.0,0.1101379]
[1745342293538,0.14995935,90749.0,90748.0,0.1301379]
[1745342293731,0.26315935,90749.0,90748.0,0.1301379]
[1745342294033,0.26315935,90749.0,90748.0,0.11085213]
[1745342294229,0.26315935,90749.0,90748.0,0.02]
[1745342294429,0.26315935,90749.0,90748.0,0.1163628]
[1745342294629,0.37429605,90749.0,90748.0,0.0072249]
[1745342294828,0.26415935,90749.0,90748.0,0.001]
[1745342295225,0.76515935,90749.0,90748.0,0.002]
[1745342295427,0.87529605,90749.0,90748.0,0.002]
[1745342295736,0.76515935,90749.0,90748.0,0.00127482]
[1745342295929,0.76515935,90749.0,90748.0,0.11141272]
[1745342296129,0.65195935,90749.0,90748.0,0.11141272]
[1745342296331,0.65195935,90749.0,90748.0,0.12141272]
[1745342296835,0.65195935,90749.0,90748.0,0.22721272]
[1745342297025,0.65195935,90749.0,90748.0,0.12141272]
[1745342299638,0.42757868,90749.0,90748.0,0.23411272]
[1745342300334,0.42389988,90749.0,90748.0,0.20766492]
[1745342300640,0.17718514,90749.0,90748.0,0.20766492]
[1745342301828,0.16565085,90749.0,90748.0,0.20766492]
[1745342302226,0.16565085,90749.0,90748.0,0.18838096]
[1745342304438,0.16565085,90749.0,90748.0,0.1201379]
[1745342304739,0.27145085,90749.0,90748.0,0.1201379]
[1745342305041,0.27145085,90749.0,90748.0,0.12636291]
[1745342305430,0.27145085,90749.0,90748.0,0.34876291]
[1745342305631,0.37975085,90749.0,90748.0,0.34876291]
[1745342307032,0.27395085,90749.0,90748.0,0.34876291]
[1745342308134,0.27395085,90749.0,90748.0,0.02]
[1745342308335,0.37975085,90749.0,90748.0,0.10369036]
[1745342308641,0.27395085,90749.0,90748.0,0.13369036]
[1745342309440,0.27395085,90749.0,90748.0,0.35899036]
[1745342312831,0.27395085,90749.0,90748.0,0.33970573]
[1745342314540,0.27395085,90749.0,90748.0,0.03]
[1745342314738,0.37955085,90749.0,90748.0,0.03]
[1745342315334,0.37955085,90749.0,90748.0,0.01622498]
[1745342316336,0.37955085,90749.0,90745.0,0.110141]
[1745342316536,0.37955085,90749.0,90745.0,0.03]
[1745342316738,0.37955085,90749.0,90746.0,0.1101403]
[1745342317045,0.38055085,90749.0,90748.0,0.002]
[1745342317736,0.37955085,90749.0,90748.0,0.002]
[1745342317945,0.27495085,90749.0,90748.0,0.1121379]
[1745342318250,0.27495085,90749.0,90748.0,0.1221379]
[1745342318440,0.27495085,90749.0,90748.0,0.3496379]
[1745342318836,0.27395085,90749.0,90748.0,0.3476379]
[1745342319146,0.11886686,90749.0,90748.0,0.3476379]
[1745342319539,0.06376881,90749.0,90748.0,0.3476379]
[1745342319741,0.06376881,90749.0,90748.0,0.76714845]
[1745342320139,0.01711881,90749.0,90748.0,0.76714845]
[1745342320345,0.00016528,90750.0,90749.0,0.1101367]
[1745342320545,0.3608,90760.0,90759.0,0.1101246]
[1745342320859,0.31546451,90777.0,90759.0,0.03]
[1745342321040,0.09880686,90772.0,90771.0,0.11011]
[1745342321233,0.09880686,90772.0,90771.0,0.13011]
[1745342321646,0.09880686,90772.0,90771.0,0.36031]
[1745342322842,0.59880686,90772.0,90771.0,0.36031]
[1745342323035,0.60280686,90772.0,90771.0,0.36131]
[1745342323236,0.60280686,90772.0,90771.0,0.13111]
[1745342323749,0.60080686,90772.0,90771.0,0.1138295]
[1745342324246,0.60080686,90772.0,90771.0,0.2281295]
[1745342324446,0.60080686,90772.0,90771.0,0.25168755]
[1745342325046,0.502,90772.0,90771.0,0.21202462]
[1745342325246,0.502,90772.0,90771.0,0.62953517]
[1745342325637,0.502,90772.0,90771.0,0.69121055]
[1745342325841,0.502,90772.0,90771.0,0.80132055]
[1745342326041,0.00016528,90781.0,90775.0,0.055052]
[1745342326241,0.1076,90791.0,90790.0,0.110087]
[1745342326743,0.1076,90791.0,90790.0,0.120087]
[1745342327341,0.1076,90791.0,90790.0,0.480887]
[1745342327537,0.00016528,90800.0,90799.0,0.110076]
[1745342327741,0.3608,90804.0,90803.0,0.1100712]
[1745342328046,0.00829915,90807.0,90806.0,0.1100676]
[1745342328237,0.09119105,90809.0,90808.0,0.1100651]
[1745342328443,0.20679105,90809.0,90808.0,0.1080651]
[1745342328644,0.20679105,90809.0,90808.0,0.1170651]
[1745342329048,0.20679105,90809.0,90808.0,0.1160651]
[1745342329238,0.6206,90809.0,90808.0,0.1200651]
[1745342329444,0.6226,90809.0,90808.0,0.1200651]
[1745342329752,0.6246,90809.0,90808.0,0.1210651]
[1745342330148,0.8698,90809.0,90808.0,0.1210651]
[1745342330349,0.509,90809.0,90808.0,0.53857565]
[1745342331654,0.505,90809.0,90808.0,0.53957565]
[1745342331847,0.505,90809.0,90808.0,0.1220651]
[1745342332041,0.505,90809.0,90808.0,0.1120651]
[1745342332248,0.505,90809.0,90808.0,0.18279434]
[1745342332449,0.505,90809.0,90808.0,0.15636587]
[1745342332949,0.505,90809.0,90808.0,0.57387642]
[1745342333749,0.005,90809.0,90808.0,0.57387642]
[1745342335949,0.005,90809.0,90808.0,0.56011176]
[1745342337255,0.30641462,90816.0,90815.0,0.1100567]
[1745342337447,0.30641462,90816.0,90815.0,0.1800567]
[1745342337755,0.30641462,90816.0,90815.0,0.59756725]
[1745342338054,0.30641462,90816.0,90815.0,0.1800567]
[1745342338452,0.80641462,90816.0,90815.0,0.1800567]
[1745342338651,0.80941462,90816.0,90815.0,0.1800567]
[1745342339052,0.80941462,90816.0,90815.0,0.2880567]
[1745342340852,0.30941462,90816.0,90815.0,0.2880567]
[1745342341261,0.30941462,90816.0,90815.0,0.178]
[1745342341450,0.30941462,90816.0,90815.0,0.2880567]
[1745342341857,0.78027002,90816.0,90815.0,0.07]
[1745342342051,0.67021462,90816.0,90815.0,0.07]
[1745342342357,1.17021462,90816.0,90815.0,0.07]
[1745342342556,1.40101462,90816.0,90815.0,0.07]
[1745342342875,1.40101462,90816.0,90812.0,0.1100602]
[1745342343162,1.40101462,90816.0,90812.0,0.01]
[1745342343455,1.28611462,90816.0,90815.0,0.1100567]
[1745342343650,1.17021462,90816.0,90815.0,0.1200567]
[1745342343855,0.80941462,90816.0,90815.0,0.1200567]
[1745342344359,0.80841462,90816.0,90815.0,0.1200567]
[1745342344551,0.80941462,90816.0,90815.0,0.1200567]
[1745342345058,0.80941462,90816.0,90815.0,0.2334567]
[1745342345258,0.80741462,90816.0,90815.0,0.3454567]
[1745342345464,0.80941462,90816.0,90815.0,0.76296725]
[1745342345762,0.30741462,90816.0,90815.0,0.76296725]
[1745342346063,0.30841462,90816.0,90815.0,0.76596725]
[1745342346256,0.30841462,90816.0,90815.0,0.75220397]
[1745342346952,0.3608,90844.0,90832.0,0.1100361]
[1745342347153,0.2296,90838.0,90832.0,0.1200361]
[1745342347552,0.2296,90838.0,90832.0,0.009]
[1745342347756,0.2296,90838.0,90832.0,0.1190361]
[1745342348161,0.36915016,90833.0,90832.0,0.2344361]
[1745342348363,0.08629365,90842.0,90838.0,0.0550142]
[1745342348659,0.2296,90853.0,90852.0,0.1100118]
[1745342348858,0.3381,90853.0,90852.0,0.1100118]
[1745342349260,0.8381,90853.0,90849.0,0.0550073]
[1745342349452,0.8381,90853.0,90851.0,0.1100123]
[1745342349656,0.8381,90853.0,90851.0,0.01]
[1745342350061,0.8381,90853.0,90852.0,0.1154]
[1745342350262,0.8381,90853.0,90851.0,0.04671761]
[1745342350461,0.8381,90853.0,90850.0,0.1100136]
[1745342350767,0.8381,90853.0,90850.0,0.1200136]
[1745342350961,0.8381,90853.0,90851.0,0.1083]
[1745342351358,0.8381,90853.0,90851.0,0.1073]
[1745342351558,0.8381,90853.0,90852.0,0.001]
[1745342351954,0.8381,90853.0,90851.0,0.15349971]
[1745342352153,0.84650849,90853.0,90851.0,0.15549971]
[1745342352462,0.84650849,90853.0,90851.0,0.04819971]
[1745342352665,0.84650849,90853.0,90852.0,0.001]
[1745342352853,0.84650849,90853.0,90852.0,0.002]
[1745342353059,0.84650849,90853.0,90852.0,0.001]
[1745342354465,0.84650849,90853.0,90851.0,0.04819971]
[1745342354653,0.84650849,90853.0,90852.0,0.001]
[1745342355060,0.84650849,90853.0,90852.0,0.1110118]
[1745342355263,0.84650849,90853.0,90852.0,0.3438118]
[1745342355767,0.50840849,90853.0,90852.0,0.3448118]
[1745342356355,0.1174,90860.0,90856.0,0.0550032]
[1745342356554,0.1174,90860.0,90859.0,0.1100034]
[1745342356754,0.1174,90860.0,90859.0,0.01]
[1745342356965,0.1174,90860.0,90859.0,0.1200034]
[1745342357171,0.2339,90860.0,90859.0,0.1200034]
[1745342357466,0.2349,90860.0,90859.0,0.09358712]
[1745342357664,0.2349,90860.0,90859.0,0.10358712]
[1745342357967,0.24324947,90860.0,90859.0,0.10358712]
[1745342358166,0.74224947,90860.0,90859.0,0.10358712]
[1745342358368,0.74324947,90860.0,90859.0,0.10358712]
[1745342358554,0.74424947,90860.0,90859.0,0.10358712]
[1745342360371,0.62774947,90860.0,90859.0,0.10358712]
[1745342361965,0.62674947,90860.0,90859.0,0.10358712]
[1745342363265,0.62574947,90860.0,90859.0,0.10358712]
[1745342364367,0.73904947,90860.0,90859.0,0.01]
[1745342364869,0.73904947,90860.0,90859.0,0.1200034]
[1745342365070,0.62574947,90860.0,90859.0,0.1200034]
[1745342365567,0.62574947,90860.0,90859.0,0.09358739]
[1745342365757,0.50834947,90860.0,90859.0,0.23098739]
[1745342365957,0.50834947,90860.0,90859.0,0.34858739]
[1745342366371,0.50834947,90860.0,90859.0,0.64849794]
[1745342366562,0.74034947,90860.0,90859.0,0.2474034]
[1745342366766,0.62494947,90860.0,90859.0,0.23364507]
[1745342366961,0.62494947,90860.0,90859.0,0.23564507]
[1745342367161,0.62494947,90860.0,90859.0,0.34704507]
[1745342367763,0.98574947,90860.0,90859.0,0.34704507]
[1745342369567,0.98574947,90860.0,90859.0,0.34804507]
[1745342370471,0.98674947,90860.0,90859.0,0.34904507]
[1745342372277,0.3608,90878.0,90865.0,0.054998]
[1745342372575,0.1117,90875.0,90868.0,0.1099925]
[1745342372881,0.08771563,90877.0,90876.0,0.1099828]
[1745342373064,0.08018243,90877.0,90876.0,0.1199828]
[1745342373269,0.0083268,90877.0,90876.0,0.1199828]
[1745342373471,0.3608,90878.0,90877.0,0.08156968]
[1745342373667,0.3608,90878.0,90877.0,0.09156968]
[1745342374172,0.8608,90878.0,90877.0,0.2419]
[1745342374375,0.8608,90878.0,90877.0,0.3508816]
[1745342375179,0.8608,90878.0,90877.0,0.3498816]
[1745342375572,0.8618,90878.0,90877.0,0.3498816]
[1745342375770,0.8628,90878.0,90877.0,0.3498816]
[1745342376876,0.87086099,90878.0,90877.0,0.3498816]
[1745342377175,0.87086099,90878.0,90877.0,0.34612552]
[1745342378479,0.49615099,90878.0,90877.0,0.76363607]
[1745342378666,0.38159051,90878.0,90877.0,0.76363607]
[1745342378867,0.06539616,90878.0,90877.0,0.76363607]
[1745342379076,0.05813402,90878.0,90877.0,0.76363607]
[1745342379272,0.09687565,90900.0,90877.0,0.59618392]
[1745342379480,0.09687565,90900.0,90899.0,0.109955]
[1745342379678,0.09687565,90900.0,90899.0,0.129955]
[1745342379983,0.03748346,90900.0,90899.0,0.129955]
[1745342380280,0.03546043,90900.0,90899.0,0.129955]
[1745342380474,0.02995824,90900.0,90899.0,0.7858056]
[1745342380870,0.02445605,90900.0,90899.0,0.7858056]
[1745342381074,0.52445605,90900.0,90899.0,0.7858056]
[1745342381271,0.51895386,90900.0,90899.0,0.7858056]
[1745342381477,0.51895386,90900.0,90899.0,0.75940436]
[1745342381784,0.51345167,90900.0,90899.0,0.75940436]
[1745342382180,0.50794948,90900.0,90899.0,0.75940436]
[1745342382376,0.50894948,90900.0,90899.0,0.75940436]
[1745342382578,0.50344729,90900.0,90899.0,0.76040436]
[1745342382981,0.48075982,90900.0,90899.0,0.76040436]
[1745342383176,0.42713982,90900.0,90899.0,0.76040436]
[1745342383379,0.35349502,90900.0,90899.0,0.76040436]
[1745342383678,0.31638805,90900.0,90899.0,0.76040436]
[1745342385185,0.31638805,90900.0,90899.0,0.76140436]
[1745342385380,0.311028,90900.0,90899.0,0.76340436]
[1745342386080,0.311028,90900.0,90899.0,0.76140436]
[1745342386383,0.311028,90900.0,90899.0,0.76340436]
[1745342387175,0.311028,90900.0,90899.0,0.74965343]
[1745342387379,0.311028,90900.0,90899.0,0.33390283]
[1745342388277,0.311028,90900.0,90899.0,0.33190283]
[1745342388481,0.311028,90900.0,90899.0,0.33290283]
[1745342388875,0.311028,90900.0,90899.0,0.33190283]
[1745342389188,0.311028,90900.0,90899.0,0.33090283]
[1745342389383,0.311028,90900.0,90899.0,0.33290283]
[1745342389587,0.311028,90900.0,90899.0,0.373055]
[1745342390986,0.26701895,90900.0,90899.0,0.373055]
[1745342395982,0.26701895,90900.0,90899.0,0.372055]
[1745342396183,0.26701895,90900.0,90899.0,0.373055]
[1745342397594,0.26701895,90900.0,90899.0,0.34665242]
[1745342397892,0.26701895,90900.0,90899.0,0.35290108]
[1745342398485,0.21261895,90900.0,90899.0,0.35290108]
[1745342398684,0.21261895,90900.0,90899.0,0.2940456]
[1745342399604,0.3608,90919.0,90918.0,0.109932]
[1745342399799,0.3608,90919.0,90916.0,0.1099336]
[1745342400097,0.3608,90919.0,90917.0,0.1245]
[1745342400292,0.109932,90918.0,90917.0,0.1245]
[1745342400502,0.229032,90918.0,90917.0,0.1245]
[1745342400695,0.1191,90918.0,90917.0,0.1245]
[1745342400897,0.09304,90934.0,90925.0,0.0549616]
[1745342401087,0.01660226,90934.0,90927.0,0.0549603]
[1745342401291,0.1191,90933.0,90927.0,0.0649603]
[1745342401491,0.1191,90933.0,90927.0,0.0649602]
[1745342401689,0.1191,90933.0,90928.0,0.0549594]
[1745342401990,0.1191,90933.0,90930.0,0.1099174]
[1745342402191,0.1191,90933.0,90931.0,0.1099162]
[1745342402389,0.12853384,90933.0,90922.0,0.3608]
[1745342402699,0.1099303,90920.0,90914.0,0.1099368]
[1745342402910,0.3617,90919.0,90917.0,0.1800431]
[1745342403204,0.471631,90919.0,90917.0,0.1800431]
[1745342403407,0.109932,90918.0,90917.0,0.1700431]
[1745342403898,0.347732,90918.0,90917.0,0.1700431]
[1745342404303,0.1099416,90910.0,90907.0,0.00495011]
[1745342404504,0.1099416,90910.0,90909.0,0.04599986]
[1745342405095,0.9001416,90910.0,90909.0,0.04599986]
[1745342405398,0.90020001,90910.0,90886.0,0.0549853]
[1745342405599,0.1099642,90892.0,90884.0,0.0549862]
[1745342405792,0.3538652,90891.0,90887.0,0.1099691]
[1745342405991,0.1099659,90890.0,90888.0,0.1099682]
[1745342406191,0.2439,90891.0,90882.0,0.3608]
[1745342406401,0.125,90894.0,90882.0,0.4907755]
[1745342406402,0.1099701,90887.0,90882.0,0.4907755]
[1745342406699,0.2439,90886.0,90883.0,0.1099741]
[1745342406896,0.2439,90886.0,90884.0,0.1099721]
[1745342407092,0.2439,90886.0,90885.0,0.1099719]
[1745342408000,0.2439,90886.0,90884.0,0.04669871]
[1745342408207,0.7439,90886.0,90882.0,0.4707751]
[1745342408412,0.7439,90886.0,90882.0,0.43776324]
[1745342408700,0.7439,90886.0,90885.0,0.014]
[1745342409101,1.2697134,90886.0,90876.0,0.0549908]
[1745342409394,0.1099722,90885.0,90882.0,0.007]
[1745342409598,1.16803151,90886.0,90882.0,0.007]
[1745342409901,0.2398,90884.0,90882.0,0.014]
[1745342410106,0.1177,90884.0,90883.0,0.1099743]
[1745342410414,0.1177,90884.0,90883.0,0.1199743]
[1745342410906,0.6177,90884.0,90883.0,0.01]
[1745342411704,0.6187,90884.0,90883.0,0.016]
[1745342412100,0.6197,90884.0,90883.0,0.021]
[1745342413009,0.7296731,90884.0,90883.0,0.021]
[1745342413603,0.7296731,90884.0,90882.0,0.03402686]
[1745342413809,0.2358743,90883.0,90882.0,0.01]
[1745342414011,0.2358743,90883.0,90880.0,0.000165]